bitfinex/quotes_ETHUSD_20211001
["timestamp","ask_amount","ask_price","bid_price","bid_amount"]
[1633097613289,0.97418886,3222.9,3222.8,0.149]
[1633097613490,0.00914356,3222.9,3222.8,0.149]
[1633097613891,0.00914356,3222.9,3222.8,3.549]
[1633097614294,0.00914356,3222.9,3222.8,0.149]
[1633097614492,6.23714356,3222.9,3222.8,4.80158]
[1633097617294,7.00743234,3222.9,3222.8,4.80158]
[1633097617493,6.22665576,3222.9,3222.8,13.60158]
[1633097617697,6.22665576,3222.9,3222.8,4.80158]
[1633097623699,7.32973267,3222.9,3222.8,4.80158]
[1633097624298,6.22665576,3222.9,3222.8,4.80158]
[1633097626106,6.22665576,3222.9,3222.8,0.149]
[1633097626505,6.22665576,3222.9,3222.0,0.003]
[1633097626506,6.22665576,3222.9,3222.3,0.149]
[1633097626508,0.149,3222.8,3222.3,0.149]
[1633097626708,0.149,3222.8,3222.0,0.003]
[1633097626713,0.079913,3222.4,3222.0,0.003]
[1633097626907,0.079913,3222.4,3221.8,0.149]
[1633097627103,6.2974252,3222.4,3221.9,1.3483262]
[1633097627503,5.0,3222.3,3222.0,0.003]
[1633097627705,6.2974252,3222.4,3222.1,0.149]
[1633097627706,9.3207622,3222.2,3222.1,0.149]
[1633097627906,9.3207622,3222.2,3222.1,1.49348327]
[1633097628107,6.2175122,3222.2,3222.1,1.49348327]
[1633097628305,3.13571735,3222.3,3222.1,1.49348327]
[1633097628504,3.13571735,3222.3,3222.2,1.34304598]
[1633097628505,3.10307,3222.3,3222.2,1.34304598]
[1633097628704,3.10307,3222.3,3222.2,1.49204598]
[1633097628905,6.228,3222.6,3222.2,1.49204598]
[1633097629105,3.10216,3222.7,3222.3,1.34297096]
[1633097629305,3.10216,3222.7,3222.4,0.149]
[1633097629505,3.10216,3222.7,3222.5,1.34322555]
[1633097629706,3.10216,3222.7,3222.6,0.149]
[1633097629911,9.33016,3222.7,3222.6,0.149]
[1633097630109,3.10216,3222.7,3222.6,0.149]
[1633097633111,9.33016,3222.7,3222.6,0.149]
[1633097636115,3.10216,3222.7,3222.6,0.149]
[1633097636917,9.33016,3222.7,3222.6,0.149]
[1633097637318,10.12329254,3222.7,3222.6,0.149]
[1633097637719,10.16303083,3222.7,3222.6,0.149]
[1633097638317,9.33016,3222.7,3222.6,0.149]
[1633097639378,3.10216,3222.7,3222.6,0.149]
[1633097640383,0.149,3222.8,3222.6,1.76182844]
[1633097640580,0.149,3222.8,3222.7,15.79654756]
[1633097640780,0.149,3222.8,3222.7,20.59761756]
[1633097641178,0.149,3222.8,3222.7,8.91616976]
[1633097641379,0.149,3222.8,3222.7,6.14761756]
[1633097644192,0.00914356,3222.9,3222.8,14.45]
[1633097644391,0.00914356,3222.9,3222.8,16.4521779]
[1633097644590,0.00914356,3222.9,3222.8,18.05275627]
[1633097644989,0.00914356,3222.9,3222.8,18.56289537]
[1633097645189,0.00914356,3222.9,3222.8,18.05275627]
[1633097645389,0.00914356,3222.9,3222.8,9.05275627]
[1633097645593,0.00914356,3222.9,3222.8,7.20765475]
[1633097645993,0.003,3223.0,3222.9,14.45]
[1633097646191,0.003,3223.0,3222.9,14.599]
[1633097646391,0.003,3223.0,3222.9,19.51600594]
[1633097646591,0.003,3223.0,3222.9,5.06600594]
[1633097646995,0.003,3223.0,3222.9,6.40842195]
[1633097650702,3.0665,3223.3,3222.9,6.40842195]
[1633097650900,0.006,3223.3,3223.0,1.34067743]
[1633097651101,0.006,3223.3,3223.1,4.80103]
[1633097653303,0.006,3223.3,3223.2,0.0082875]
[1633097653502,0.006,3223.3,3223.2,0.1408875]
[1633097656703,0.00690289,3223.3,3223.2,0.1408875]
[1633097659301,0.00690289,3223.3,3223.2,4.7935775]
[1633097661905,6.23490289,3223.3,3223.2,4.7935775]
[1633097662302,0.00690289,3223.3,3223.2,4.7935775]
[1633097662505,0.009,3223.5,3223.3,7.4]
[1633097662704,0.0045122,3223.6,3223.4,0.149]
[1633097662902,0.0045122,3223.6,3223.5,4.65193]
[1633097663103,0.0045122,3223.6,3223.5,4.80093]
[1633097666809,0.006,3224.5,3224.4,2.95060363]
[1633097667011,2.689,3225.0,3224.7,21.11319183]
[1633097667012,2.651,3225.0,3224.7,21.11319183]
[1633097667212,0.006,3225.6,3225.0,14.86110924]
[1633097667409,0.006,3225.6,3225.0,15.03561613]
[1633097667607,0.006,3225.6,3225.1,14.45]
[1633097667608,0.00289146,3225.3,3225.1,14.45]
[1633097667810,0.00289146,3225.3,3225.2,19.24714]
[1633097668605,0.006,3225.6,3225.3,14.45]
[1633097668813,0.006,3225.6,3225.3,14.599]
[1633097669608,0.006,3225.6,3225.3,0.149]
[1633097670206,0.006,3225.6,3225.3,6.249]
[1633097670607,0.006,3225.6,3225.3,0.149]
[1633097671412,7.03083098,3226.0,3225.5,0.97531914]
[1633097671608,7.03083098,3226.0,3225.6,0.149]
[1633097671810,1.024009,3226.0,3225.6,0.149]
[1633097672210,1.024009,3226.0,3225.7,4.64858]
[1633097672409,1.024009,3226.0,3225.8,0.149]
[1633097673209,0.006,3226.1,3225.8,0.149]
[1633097673417,0.006,3226.1,3225.9,4.64862]
[1633097673615,0.047949,3226.0,3225.8,0.149]
[1633097673813,0.047949,3226.0,3225.5,0.003]
[1633097674016,0.95547152,3226.0,3225.4,0.149]
[1633097674412,0.95547152,3226.0,3225.4,6.34895]
[1633097674616,2.486,3226.1,3225.4,6.34895]
[1633097675010,2.486,3226.1,3225.5,0.003]
[1633097675210,1.19876179,3226.2,3225.6,0.149]
[1633097675411,1.1988723,3225.9,3225.8,4.64908]
[1633097675612,0.95101247,3226.1,3225.8,4.79808]
[1633097675812,7.26025885,3226.2,3225.8,4.79808]
[1633097676012,1.03784402,3226.2,3225.8,4.79808]
[1633097676213,7.21884402,3226.2,3225.8,4.79808]
[1633097676614,1.18890426,3226.1,3225.8,4.79808]
[1633097676814,0.94603131,3226.0,3225.8,4.79808]
[1633097677513,1.21917797,3226.1,3225.8,4.79808]
[1633097677514,1.18890426,3226.1,3225.8,4.79808]
[1633097677716,0.0012353,3226.0,3225.8,4.79808]
[1633097679115,5.0584529,3225.9,3225.8,4.79808]
[1633097679321,11.2364529,3225.9,3225.8,0.149]
[1633097679515,7.3864529,3225.9,3225.8,0.149]
[1633097682420,1.1584529,3225.9,3225.8,0.149]
[1633097682618,0.0012353,3226.0,3225.8,4.79793]
[1633097683817,1.01582415,3225.9,3225.8,4.79793]
[1633097684019,0.0012353,3226.0,3225.8,4.79793]
[1633097684417,3.1007353,3226.0,3225.8,4.79793]
[1633097685018,4.02951855,3226.0,3225.8,4.79793]
[1633097693525,0.93001855,3226.0,3225.8,4.79793]
[1633097694325,0.93001855,3226.0,3225.8,2.48691758]
[1633097697525,0.93001855,3226.0,3225.9,0.149]
[1633097699928,0.0012353,3226.0,3225.9,0.149]
[1633097700929,1.06977438,3226.0,3225.9,0.149]
[1633097702297,1.06977438,3226.0,3225.2,0.079913]
[1633097702298,0.85460494,3225.4,3225.0,4.69058224]
[1633097702494,0.85460494,3225.4,3224.7,4.31698738]
[1633097702495,0.85460494,3225.4,3224.7,4.23707438]
[1633097702497,3.14649805,3225.3,3224.7,4.23707438]
[1633097702694,0.81952455,3224.9,3224.7,4.23707438]
[1633097702893,0.81952455,3224.9,3224.8,4.65069]
[1633097703092,0.81952455,3224.9,3224.7,4.23707438]
[1633097703495,0.87982299,3224.8,3224.7,4.23707438]
[1633097704492,0.87982299,3224.8,3224.7,4.24716859]
[1633097704697,0.03742538,3224.9,3224.7,4.24716859]
[1633097704900,9.39588509,3225.0,3224.7,4.24716859]
[1633097705200,9.39588509,3225.0,3224.2,0.003]
[1633097705201,2.57550193,3224.6,3224.2,0.003]
[1633097705423,8.229913,3224.3,3224.2,0.003]
[1633097705603,6.318483,3224.3,3224.2,0.003]
[1633097705798,6.318483,3224.3,3223.8,0.006]
[1633097705799,1.1499,3224.2,3223.8,0.006]
[1633097705998,1.80203934,3224.1,3223.4,0.009]
[1633097706196,1.80203934,3224.1,3223.3,0.009]
[1633097706197,1.14755233,3223.5,3223.3,0.009]
[1633097706397,9.63255233,3223.5,3223.3,0.009]
[1633097706802,1.48059248,3223.4,3223.3,0.009]
[1633097706996,9.671997,3223.5,3222.9,0.012]
[1633097707198,0.85185747,3223.4,3222.9,0.012]
[1633097707402,3.13300497,3223.5,3222.9,0.012]
[1633097707600,3.13439168,3223.5,3222.9,0.012]
[1633097708000,3.13439168,3223.5,3222.9,4.66497]
[1633097708201,3.10369168,3223.5,3222.9,4.66497]
[1633097708399,4.01520333,3223.5,3223.0,0.012]
[1633097708801,13.34553833,3223.5,3223.0,0.012]
[1633097709001,14.97925607,3223.5,3223.0,0.00828745]
[1633097709200,14.97925607,3223.5,3222.9,0.012]
[1633097709201,3.13455206,3223.4,3222.9,0.012]
[1633097709402,3.13455206,3223.4,3222.6,2.4280859]
[1633097709403,0.079913,3223.3,3223.2,0.01189742]
[1633097709704,6.228,3223.1,3222.7,0.003]
[1633097709906,11.479913,3222.8,3222.7,0.003]
[1633097710106,18.941713,3222.8,3221.7,0.009]
[1633097710304,18.941713,3222.8,3221.5,2.5808051]
[1633097710305,18.941713,3222.8,3221.6,0.009]
[1633097710306,4.17376747,3222.7,3221.6,0.009]
[1633097710502,0.78790649,3222.6,3221.7,1.44138755]
[1633097710707,0.78790649,3222.6,3221.6,0.009]
[1633097710708,7.79779774,3221.8,3221.6,0.009]
[1633097710905,7.79779774,3221.8,3221.1,0.50719197]
[1633097710906,8.61555211,3221.8,3221.3,0.003]
[1633097711104,7.3753,3221.6,3221.2,0.012]
[1633097711305,6.26590758,3221.6,3221.3,1.44273293]
[1633097711505,6.26223255,3221.6,3221.3,3.92273293]
[1633097711708,2.5855,3221.9,3221.8,0.858]
[1633097711908,0.86304007,3222.9,3221.8,0.858]
[1633097711910,11.072413,3223.3,3222.1,2.63118045]
[1633097712107,0.003,3224.0,3222.6,0.87284446]
[1633097712309,0.003,3224.0,3223.3,4.683425]
[1633097712710,0.003,3224.0,3223.6,1.75428831]
[1633097712904,0.003,3224.0,3223.7,0.149]
[1633097713107,0.003,3224.0,3223.7,4.14757594]
[1633097713306,0.003,3224.0,3223.8,0.83517287]
[1633097713504,0.003,3224.0,3223.9,14.549]
[1633097713808,0.003,3224.5,3223.9,20.00484807]
[1633097714009,0.003,3224.5,3224.4,18.164965]
[1633097714207,0.003,3224.5,3224.4,3.913965]
[1633097714405,0.003,3224.5,3224.4,4.17954094]
[1633097714807,0.003,3224.5,3224.4,3.882]
[1633097715807,0.003,3224.5,3224.4,4.80978054]
[1633097716206,0.003,3224.5,3224.4,3.882]
[1633097717207,0.003,3224.5,3224.4,4.6972011]
[1633097717411,0.003,3224.5,3224.4,3.882]
[1633097717609,0.003,3224.5,3224.4,5.482]
[1633097718212,0.003,3224.5,3224.4,1.749]
[1633097718510,0.003995,3224.5,3224.4,1.749]
[1633097724113,0.003995,3224.5,3224.4,1.71476745]
[1633097724317,0.003995,3224.5,3223.7,0.149]
[1633097724318,0.1147,3224.4,3223.7,0.149]
[1633097724516,0.079913,3223.8,3223.5,0.003]
[1633097724716,0.079913,3223.8,3223.3,0.149]
[1633097724717,3.1024949,3223.6,3223.3,0.149]
[1633097724914,3.1024949,3223.6,3223.4,0.003]
[1633097724915,1.1553,3223.5,3223.4,0.003]
[1633097725116,4.33363358,3223.5,3223.4,0.003]
[1633097725315,1.04029508,3223.5,3223.4,0.003]
[1633097725518,1.04029508,3223.5,3222.9,0.006]
[1633097725519,1.3859,3223.4,3222.9,0.006]
[1633097725717,6.18121644,3223.3,3222.9,0.006]
[1633097725924,0.079913,3223.1,3222.9,0.006]
[1633097726117,3.14037937,3223.1,3222.9,0.006]
[1633097726518,0.87425669,3223.0,3222.9,0.006]
[1633097726718,4.96287308,3223.0,3222.9,0.006]
[1633097726917,4.92729981,3223.0,3222.9,0.006]
[1633097727115,1.70195074,3223.0,3222.9,0.006]
[1633097727718,7.92995074,3223.0,3222.9,0.006]
[1633097728718,8.00986374,3223.0,3222.9,0.006]
[1633097729319,8.00986374,3223.0,3222.8,0.105]
[1633097729721,1.78186374,3223.0,3222.8,0.105]
[1633097730522,6.43662374,3223.0,3222.6,0.84087946]
[1633097730725,6.43662374,3223.0,3222.7,0.149]
[1633097731321,6.43662374,3223.0,3222.6,0.84087946]
[1633097731523,6.43662374,3223.0,3222.7,0.149]
[1633097731726,7.90552374,3223.0,3222.7,0.149]
[1633097731929,10.99879373,3223.0,3222.7,0.149]
[1633097732323,7.90552374,3223.0,3222.7,0.149]
[1633097732523,6.43662374,3223.0,3222.7,0.149]
[1633097733124,7.40262374,3223.0,3222.7,0.149]
[1633097733327,6.43662374,3223.0,3222.7,0.149]
[1633097733929,6.43662374,3223.0,3222.6,0.84087946]
[1633097733930,14.4,3222.9,3222.6,0.84087946]
[1633097734130,1.4385,3222.7,3222.6,0.84087946]
[1633097734325,10.87595221,3222.7,3222.4,0.003]
[1633097734525,3.09400103,3222.6,3222.0,0.003]
[1633097734727,4.52150103,3222.6,3222.0,0.003]
[1633097734932,5.05,3222.3,3221.9,2.0969]
[1633097735127,4.65593,3222.1,3221.9,2.0969]
[1633097735326,10.37272832,3222.4,3221.9,2.0469]
[1633097735327,3.1039488,3222.3,3221.9,2.0469]
[1633097735529,3.13709316,3222.3,3221.9,2.0469]
[1633097736125,3.08709316,3222.3,3221.9,2.0469]
[1633097737328,7.72305125,3222.2,3221.9,2.0469]
[1633097737526,7.72305125,3222.2,3221.8,0.82376745]
[1633097737527,17.30210461,3222.3,3221.8,0.82376745]
[1633097737731,6.75210461,3222.3,3221.9,0.149]
[1633097737928,3.65759316,3222.3,3221.9,0.149]
[1633097738328,3.08709316,3222.3,3221.9,0.149]
[1633097738532,6.14027647,3222.3,3221.9,0.149]
[1633097738730,6.14027647,3222.3,3221.8,0.82376745]
[1633097738731,0.079913,3222.0,3221.8,0.82376745]
[1633097739532,1.85996553,3221.9,3221.8,0.82376745]
[1633097740131,1.12110722,3221.9,3221.8,0.82376745]
[1633097740531,0.079913,3222.0,3221.8,0.82376745]
[1633097740737,4.2156488,3222.3,3221.8,0.97276745]
[1633097740738,3.08674918,3222.3,3221.8,0.97276745]
[1633097740932,0.003,3222.5,3221.8,0.97276745]
[1633097741133,0.78390135,3222.4,3221.9,0.45157594]
[1633097741331,0.78390135,3222.4,3221.9,0.186]
[1633097741533,1.0611274,3222.0,3221.9,0.186]
[1633097741734,0.9611274,3222.0,3221.9,0.186]
[1633097742331,3.1038,3222.1,3221.9,0.186]
[1633097743330,0.9079532,3222.0,3221.9,0.186]
[1633097744530,3.14068428,3222.1,3221.9,0.186]
[1633097744732,3.1038,3222.1,3221.9,0.186]
[1633097744932,3.1038938,3222.3,3221.9,0.186]
[1633097745133,3.13931849,3222.3,3221.9,0.186]
[1633097745534,4.2281452,3222.3,3221.9,0.186]
[1633097745737,4.2281452,3222.3,3222.0,0.78522466]
[1633097745936,4.2281452,3222.3,3222.1,0.186]
[1633097746537,4.735983,3222.2,3222.1,0.186]
[1633097746997,5.4434452,3222.3,3222.1,0.186]
[1633097747197,6.1891199,3222.2,3222.1,0.186]
[1633097747398,1.0690329,3222.2,3222.1,0.186]
[1633097749707,1.0690329,3222.2,3221.8,0.82376745]
[1633097749899,4.1730929,3222.2,3221.8,0.82376745]
[1633097750700,4.65609,3222.1,3221.8,0.82376745]
[1633097752399,4.65622,3222.0,3221.8,0.82376745]
[1633097753708,0.03002864,3222.1,3221.9,0.21148284]
[1633097753903,0.003,3222.5,3221.7,3.10341]
[1633097753904,0.003,3222.5,3222.0,0.186]
[1633097754106,0.003,3222.5,3221.7,3.10341]
[1633097754107,0.003,3222.5,3222.1,0.186]
[1633097754302,0.003,3222.5,3222.2,0.186]
[1633097755301,3.1029593,3222.4,3222.2,0.186]
[1633097755710,6.24235648,3222.4,3222.2,0.186]
[1633097755904,10.89765648,3222.4,3222.2,0.186]
[1633097756304,6.24235648,3222.4,3222.2,0.186]
[1633097756707,0.91590388,3222.3,3222.2,0.186]
[1633097757302,6.24235648,3222.4,3222.2,0.186]
[1633097758809,12.47208094,3222.3,3222.2,0.186]
[1633097759011,7.33026094,3222.3,3222.2,0.186]
[1633097759211,7.33026094,3222.3,3222.2,0.15176745]
[1633097759412,3.104281,3222.0,3221.6,0.186]
[1633097760009,2.09978097,3221.9,3221.6,0.186]
[1633097760410,5.53785195,3221.8,3221.6,0.186]
[1633097760610,0.88150195,3221.8,3221.6,0.186]
[1633097763215,5.53768195,3221.8,3221.6,0.186]
[1633097763416,5.53768195,3221.8,3221.3,0.186]
[1633097763614,3.1041464,3221.6,3221.3,0.186]
[1633097763815,3.10419,3221.5,3221.4,0.003]
[1633097768217,3.86685237,3221.2,3221.0,0.006]
[1633097768616,4.80543854,3221.2,3221.0,0.006]
[1633097768819,0.9545,3221.1,3221.0,0.006]
[1633097769017,0.9176,3221.1,3221.0,0.006]
[1633097769217,5.24743854,3221.2,3221.0,0.006]
[1633097769419,3.90493854,3221.2,3221.0,0.006]
[1633097769621,3.14242537,3221.2,3221.0,0.006]
[1633097770020,4.08855837,3221.2,3221.0,0.006]
[1633097771418,3.14242537,3221.2,3221.0,0.006]
[1633097772818,4.23518857,3221.2,3221.0,0.006]
[1633097773024,4.31510157,3221.2,3221.0,0.006]
[1633097773419,4.95510157,3221.2,3220.5,0.009]
[1633097773821,0.97669582,3220.8,3220.5,0.009]
[1633097774022,0.03935928,3220.9,3220.5,0.009]
[1633097774223,3.1050474,3220.9,3220.5,0.009]
[1633097774419,3.8745474,3220.9,3220.5,0.009]
[1633097774624,0.079913,3220.7,3220.5,0.009]
[1633097774823,1.853213,3220.7,3220.3,0.009]
[1633097775023,1.853213,3220.7,3220.2,0.009]
[1633097775223,1.853213,3220.7,3220.3,0.00829437]
[1633097775423,1.83916104,3220.4,3220.3,0.00829437]
[1633097775824,1.83916104,3220.4,3220.3,0.01729437]
[1633097776526,0.84520878,3220.4,3220.3,0.01729437]
[1633097778322,0.84520878,3220.4,3219.6,1.14645039]
[1633097778524,0.84520878,3220.4,3219.7,1.47530051]
[1633097778927,0.84520878,3220.4,3219.7,4.58077051]
[1633097779123,5.50369878,3220.4,3219.8,1.47515777]
[1633097779323,5.50369878,3220.4,3219.6,0.15629437]
[1633097779523,7.24129878,3220.4,3219.7,1.47627131]
[1633097780129,3.1057903,3220.1,3219.8,0.83075468]
[1633097780326,3.1057903,3220.1,3218.9,15.1668296]
[1633097780527,0.003,3219.5,3219.3,0.186]
[1633097781327,0.90509972,3219.9,3219.4,15.20410072]
[1633097781526,0.003,3220.0,3219.5,0.186]
[1633097783128,1.01937855,3219.7,3219.5,0.186]
[1633097783526,0.003,3220.0,3219.5,0.186]
[1633097783527,0.03452473,3219.8,3219.5,0.186]
[1633097783731,0.003,3220.0,3219.5,0.186]
[1633097783732,0.003,3220.0,3219.7,0.031965]
[1633097783930,0.003,3220.0,3219.9,15.39700412]
[1633097784131,0.003,3220.0,3219.9,20.23995412]
[1633097784528,0.003,3220.0,3219.9,5.83995412]
[1633097784930,0.003,3220.0,3219.9,15.25553006]
[1633097785131,0.003,3220.0,3219.9,6.00553006]
[1633097785937,0.003,3220.0,3219.9,4.84295]
[1633097786329,0.003,3220.0,3219.9,0.186]
[1633097788534,0.003,3220.0,3219.6,0.186]
[1633097788731,0.78772565,3219.9,3219.6,0.186]
[1633097788934,0.03531738,3220.0,3219.6,0.186]
[1633097789132,0.003,3220.0,3219.6,0.186]
[1633097789532,3.1057293,3219.9,3219.6,0.186]
[1633097789933,4.65906,3219.8,3219.6,0.186]
[1633097790131,3.14392634,3219.9,3219.6,0.186]
[1633097790532,1.71840547,3219.8,3219.6,0.186]
[1633097790932,6.37728547,3219.8,3219.6,0.186]
[1633097793334,1.71840547,3219.8,3219.6,0.186]
[1633097794133,0.86646102,3219.8,3219.6,0.186]
[1633097795134,0.79187524,3219.7,3219.6,0.186]
[1633097798739,0.79187524,3219.7,3219.6,0.08522557]
[1633097798937,1.82876122,3219.7,3219.6,0.08522557]
[1633097800538,1.03688598,3219.7,3219.6,0.08522557]
[1633097802005,0.03416338,3219.8,3219.6,0.08522557]
[1633097802404,3.1057293,3219.9,3219.6,0.08522557]
[1633097802607,3.14215557,3219.9,3219.6,0.08522557]
[1633097803009,0.03642627,3219.9,3219.6,4.74336557]
[1633097803207,0.003,3220.0,3219.6,4.74336557]
[1633097803408,0.003,3220.0,3219.6,0.08522557]
[1633097804406,3.1054887,3219.9,3219.6,0.08522557]
[1633097805008,3.14349604,3219.9,3219.6,0.08522557]
[1633097806608,3.14349604,3219.9,3219.6,1.00603639]
[1633097807106,3.14349604,3219.9,3219.6,0.08522557]
[1633097808106,4.03707639,3219.9,3219.6,0.08522557]
[1633097808306,0.93903663,3219.7,3219.6,0.08522557]
[1633097808506,3.14349604,3219.9,3219.6,0.08522557]
[1633097808709,3.1054887,3219.9,3219.6,0.08522557]
[1633097808907,0.03452531,3219.8,3219.6,0.08522557]
[1633097809109,3.1054887,3219.9,3219.6,0.08522557]
[1633097809307,3.1375664,3219.9,3219.6,0.08522557]
[1633097809718,0.87592567,3219.7,3219.6,0.08522557]
[1633097810309,0.87592567,3219.7,3219.6,1.5044959]
[1633097810510,0.87592567,3219.7,3219.6,1.50449462]
[1633097810711,0.03471302,3219.8,3219.6,1.50449462]
[1633097810910,3.13914582,3219.9,3219.7,1.41917471]
[1633097811110,3.13914582,3219.9,3219.8,0.186]
[1633097811313,3.13914582,3219.9,3219.8,1.60541487]
[1633097811911,4.18825898,3219.9,3219.8,1.60541487]
[1633097812717,0.03365712,3219.9,3219.8,1.60541487]
[1633097812912,0.003,3220.0,3219.8,1.60541487]
[1633097813113,0.003,3220.0,3219.9,1.41968557]
[1633097813314,0.003,3220.0,3219.9,1.60568557]
[1633097813715,1.21104236,3220.0,3219.9,1.60568557]
[1633097814517,1.21104236,3220.0,3219.5,0.186]
[1633097814817,4.65911,3219.8,3219.6,1.42058275]
[1633097815016,0.93519963,3219.7,3219.6,1.42058275]
[1633097816017,0.93519963,3219.7,3219.5,0.186]
[1633097816217,4.65946,3219.6,3219.5,0.186]
[1633097816615,4.65946,3219.6,3219.5,1.42234287]
[1633097816822,4.65946,3219.6,3219.0,0.52482143]
[1633097816823,15.95195435,3219.6,3219.0,0.003]
[1633097817024,0.079913,3219.1,3219.0,0.003]
[1633097817219,0.079913,3219.1,3218.9,0.003]
[1633097817220,4.740563,3219.1,3218.9,0.003]
[1633097817418,5.56466366,3219.1,3218.8,0.003]
[1633097817616,1.03733227,3219.0,3218.7,0.003]
[1633097817820,3.17949208,3218.9,3218.7,0.003]
[1633097818317,3.17949208,3218.9,3218.5,0.003]
[1633097818318,3.17949208,3218.9,3218.5,0.52268058]
[1633097818321,1.5922,3218.9,3218.5,0.52268058]
[1633097818519,1.5922,3218.9,3218.4,0.006]
[1633097818520,0.079913,3218.6,3218.4,0.006]
[1633097818717,0.079913,3218.6,3218.5,0.003]
[1633097818920,1.05698158,3218.6,3218.4,2.48]
[1633097819519,4.66194,3218.5,3218.4,2.48]
[1633097819719,4.66194,3218.5,3218.3,0.006]
[1633097819919,9.27062071,3218.5,3218.4,0.006]
[1633097820118,9.27062071,3218.5,3218.2,0.006]
[1633097820319,7.67227946,3218.5,3218.2,0.52924037]
[1633097820524,4.66139,3218.4,3218.2,0.006]
[1633097820718,4.66139,3218.4,3218.3,0.006]
[1633097820918,4.66139,3218.4,3218.2,2.48]
[1633097821320,4.66139,3218.4,3218.2,2.48100632]
[1633097822722,4.64486232,3218.5,3218.2,2.48100632]
[1633097822922,4.60868071,3218.5,3218.2,2.48100632]
[1633097823125,4.60868071,3218.5,3218.3,0.006]
[1633097825925,5.49485469,3218.5,3218.3,0.006]
[1633097826124,4.60868071,3218.5,3218.3,0.006]
[1633097826327,0.11066782,3218.6,3218.3,0.006]
[1633097826526,0.079913,3218.6,3218.3,0.006]
[1633097826930,14.8522,3219.4,3218.4,0.186]
[1633097826931,17.2326,3219.4,3218.4,0.186]
[1633097827128,17.2326,3219.4,3218.5,0.99557699]
[1633097827129,3.5,3219.4,3218.5,0.99557699]
[1633097827326,3.5,3219.4,3218.5,1.18757699]
[1633097827531,3.5,3219.4,3218.6,0.003]
[1633097827533,4.66098,3219.0,3218.6,0.003]
[1633097827928,1.06108724,3218.7,3218.6,0.003]
[1633097828128,0.079913,3219.5,3218.6,0.003]
[1633097828727,0.75881038,3219.1,3218.6,0.003]
[1633097829329,0.03733857,3219.2,3218.6,0.003]
[1633097829526,0.079913,3219.5,3218.6,0.003]
[1633097830126,4.66044,3219.4,3218.6,0.003]
[1633097830326,1.20644722,3218.9,3218.6,0.003]
[1633097830931,1.28636022,3218.9,3218.6,0.003]
[1633097831528,1.28636022,3218.9,3218.3,0.006]
[1633097831726,0.78061885,3218.4,3218.3,0.006]
[1633097831931,0.93552722,3218.4,3218.3,0.006]
[1633097835532,0.93552722,3218.4,3217.8,0.009]
[1633097835732,4.66222,3218.1,3217.8,0.009]
[1633097836532,0.03784656,3218.2,3217.8,0.009]
[1633097836734,0.119232,3218.6,3217.8,0.009]
[1633097836934,0.079913,3218.6,3217.8,0.009]
[1633097837333,0.079913,3218.6,3217.8,0.01842669]
[1633097837733,0.079913,3218.6,3217.9,0.009]
[1633097837934,1.00064487,3218.1,3217.9,0.009]
[1633097838134,4.741333,3218.6,3217.9,0.009]
[1633097838333,4.741333,3218.6,3218.2,0.71805382]
[1633097838533,0.079913,3218.6,3217.9,0.009]
[1633097838736,0.079913,3218.6,3218.3,0.006]
[1633097838934,0.72538297,3218.7,3218.3,0.006]
[1633097839135,0.86845072,3218.4,3217.9,0.009]
[1633097839534,0.03401293,3218.5,3218.0,0.90991419]
[1633097839739,0.72538297,3218.7,3218.0,0.90991419]
[1633097839937,0.72538297,3218.7,3218.1,0.006]
[1633097840335,0.72538297,3218.7,3218.1,0.27157594]
[1633097840734,0.03072199,3218.8,3218.2,3.11309]
[1633097840937,0.265913,3219.8,3218.2,3.11309]
[1633097841137,12.95977026,3219.8,3218.3,0.006]
[1633097841540,12.95977026,3219.8,3218.3,0.27157594]
[1633097841738,12.95977026,3219.8,3218.8,0.84970691]
[1633097841739,0.94322834,3219.2,3218.8,0.84970691]
[1633097841940,11.684213,3219.8,3218.8,0.84970691]
[1633097842142,11.684213,3219.8,3218.9,0.189]
[1633097842340,11.684213,3219.8,3219.0,0.00937524]
[1633097842536,11.684213,3219.8,3219.0,0.19837524]
[1633097842939,11.684213,3219.8,3219.5,0.92730687]
[1633097842940,1.0968152,3219.6,3219.5,0.92730687]
[1633097843135,1.0968152,3219.6,3219.0,0.19837524]
[1633097843338,1.0968152,3219.6,3219.1,3.10604]
[1633097843540,11.6043,3219.8,3219.2,3.29243]
[1633097843739,12.8798,3220.1,3219.2,3.29243]
[1633097843937,0.079913,3220.3,3219.2,3.29243]
[1633097844341,4.6623,3220.0,3219.2,3.29243]
[1633097844537,0.80037277,3219.5,3219.2,3.29243]
[1633097844939,0.89377425,3219.4,3219.2,3.29243]
[1633097845338,0.80037277,3219.5,3219.2,3.29243]
[1633097845541,0.83099625,3219.5,3219.2,3.29243]
[1633097845741,0.003,3220.0,3219.2,3.29243]
[1633097846342,0.003,3220.0,3219.3,3.1062048]
[1633097847341,1.05236808,3219.5,3219.3,3.1062048]
[1633097847544,0.81880507,3219.7,3219.3,3.1062048]
[1633097847741,0.81880507,3219.7,3219.4,0.0093605]
[1633097848541,5.55994812,3219.6,3219.4,0.0093605]
[1633097848805,0.90009812,3219.6,3219.4,0.0093605]
[1633097849309,0.079913,3219.5,3219.4,0.0093605]
[1633097849509,0.265913,3219.5,3219.4,0.0093605]
[1633097850406,18.485913,3219.5,3219.4,0.0093605]
[1633097850608,18.51165926,3219.5,3219.4,1.6093605]
[1633097850805,0.9957,3219.3,3218.9,0.003]
[1633097851010,8.779913,3219.0,3218.9,0.003]
[1633097851205,0.265913,3219.0,3218.3,0.006]
[1633097851405,1.20346907,3218.4,3218.3,0.83051599]
[1633097851805,0.03784753,3218.5,3218.3,0.83051599]